bitfinex/quotes_BTCUSD_20250610
["timestamp","ask_amount","ask_price","bid_price","bid_amount"]
[1749583765641,0.61150058,109970.0,109960.0,0.18214383]
[1749583765845,0.95150058,109970.0,109960.0,0.18214378]
[1749583766063,0.394919,109970.0,109960.0,0.1593]
[1749583766265,0.42245515,109970.0,109960.0,0.1593]
[1749583766475,0.42245515,109970.0,109960.0,0.17591356]
[1749583766692,0.42245515,109970.0,109960.0,0.18216009]
[1749583766917,0.98912945,109970.0,109960.0,0.18216009]
[1749583767141,0.98912945,109970.0,109960.0,0.07592552]
[1749583767142,0.98003673,109970.0,109960.0,0.07592552]
[1749583767372,0.98003673,109970.0,109960.0,0.0593]
[1749583767583,0.98003673,109970.0,109960.0,0.0759282]
[1749583767798,0.98003673,109970.0,109960.0,0.07592827]
[1749583768029,0.98003673,109970.0,109960.0,0.0593]
[1749583768249,0.98003673,109970.0,109960.0,0.07592782]
[1749583769098,1.07715673,109970.0,109960.0,0.0593]
[1749583769346,1.07715673,109970.0,109960.0,0.07593151]
[1749583769773,1.07715673,109970.0,109960.0,0.07593207]
[1749583770000,1.08624945,109970.0,109960.0,0.07593206]
[1749583770214,0.39581515,109970.0,109960.0,0.07593206]
[1749583770415,0.51949515,109970.0,109960.0,0.07593206]
[1749583770651,0.39581515,109970.0,109960.0,0.08218227]
[1749583770868,0.42241515,109970.0,109960.0,0.07593889]
[1749583771327,0.42241515,109970.0,109960.0,0.0655395]
[1749583771533,0.42241515,109970.0,109960.0,0.0593]
[1749583771741,0.42241515,109970.0,109960.0,0.08217848]
[1749583772612,0.42241515,109970.0,109960.0,0.07597369]
[1749583772829,0.42241515,109970.0,109960.0,0.07597424]
[1749583773055,0.42241515,109970.0,109960.0,0.0593]
[1749583773268,0.42241515,109970.0,109960.0,0.07597456]
[1749583773487,0.42241515,109970.0,109960.0,0.08222752]
[1749583774123,0.42241515,109970.0,109960.0,0.08222992]
[1749583774344,0.42241515,109970.0,109960.0,0.06555535]
[1749583774539,0.42241515,109970.0,109960.0,0.07598095]
[1749583774763,0.42241515,109970.0,109960.0,0.0822363]
[1749583775835,0.42241515,109970.0,109960.0,0.07598095]
[1749583776037,0.42241515,109970.0,109960.0,0.0759804]
[1749583776246,0.42241515,109970.0,109960.0,0.0593]
[1749583776479,0.39581515,109970.0,109960.0,0.28223503]
[1749583776691,0.02853615,109970.0,109960.0,1.28096556]
[1749583776902,0.02853615,109970.0,109960.0,1.29763621]
[1749583777120,0.02853615,109970.0,109960.0,1.37484734]
[1749583777330,0.02853615,109970.0,109960.0,1.30388637]
[1749583777331,0.001,109970.0,109960.0,1.30388637]
[1749583777536,0.001,109970.0,109960.0,1.37483289]
[1749583777910,0.001,109970.0,109960.0,1.36858356]
[1749583778114,0.001,109970.0,109960.0,1.37482968]
[1749583778368,0.001,109970.0,109960.0,1.3685833]
[1749583778575,0.001,109970.0,109960.0,1.35817281]
[1749583778746,0.001,109970.0,109960.0,1.3581728]
[1749583778980,0.0286,109990.0,109980.0,0.2575]
[1749583779153,0.0286,109990.0,109980.0,0.37748303]
[1749583779307,0.05650764,109990.0,109980.0,0.37749224]
[1749583779513,0.05650764,109990.0,109980.0,0.47749561]
[1749583779727,0.02990764,109990.0,109980.0,0.67124565]
[1749583779925,0.02990764,109990.0,109980.0,1.30976433]
[1749583780135,0.02990764,109990.0,109980.0,1.32032361]
[1749583780506,0.03090764,109990.0,109980.0,0.76899053]
[1749583781162,0.03090764,109990.0,109980.0,0.76896185]
[1749583781374,0.03090764,109990.0,109980.0,0.75231939]
[1749583781581,0.03090764,109990.0,109980.0,0.76896186]
[1749583781793,0.03090764,109990.0,109980.0,0.75231937]
[1749583782009,0.03090764,109990.0,109980.0,0.76896177]
[1749583782220,0.02990764,109990.0,109980.0,0.76896177]
[1749583782421,0.02990764,109990.0,109980.0,0.76996177]
[1749583782852,0.02990764,109990.0,109980.0,0.76996173]
[1749583783065,0.02990764,109990.0,109980.0,0.76995192]
[1749583783279,0.02990764,109990.0,109980.0,0.75331572]
[1749583783524,0.02990764,109990.0,109980.0,1.32129273]
[1749583783738,0.02990764,109990.0,109980.0,1.32129237]
[1749583783943,0.02990764,109990.0,109980.0,0.75331559]
[1749583784165,0.02990764,109990.0,109980.0,0.76994796]
[1749583784376,0.02990764,109990.0,109980.0,0.76994795]
[1749583784590,0.02990764,109990.0,109980.0,0.76994791]
[1749583784938,0.02990764,109990.0,109980.0,0.769948]
[1749583785373,0.02990764,109990.0,109980.0,0.76994803]
[1749583785803,0.02990764,109990.0,109980.0,0.76994655]
[1749583786701,0.02990764,109990.0,109980.0,0.7637098]
[1749583786925,0.02990764,109990.0,109980.0,0.67286531]
[1749583787138,0.02990764,109990.0,109980.0,0.76366654]
[1749583787398,0.02990764,109990.0,109980.0,0.76990211]
[1749583788329,0.02990764,109990.0,109980.0,0.74703847]
[1749583788545,0.02990764,109990.0,109980.0,0.75327409]
[1749583788957,0.02990764,109990.0,109980.0,0.75327509]
[1749583789195,0.02990764,109990.0,109980.0,0.76990519]
[1749583789400,0.02990764,109990.0,109980.0,0.67286519]
[1749583789687,0.02990764,109990.0,109980.0,0.28151534]
[1749583789688,0.92748922,109990.0,109980.0,0.28151534]
[1749583789872,0.94567161,109990.0,109980.0,0.02403925]
[1749583790131,1.2833736,109990.0,109980.0,0.02404831]
[1749583790372,1.22795195,109990.0,109980.0,0.00114507]
[1749583790782,1.21886022,109990.0,109980.0,0.01780593]
[1749583790992,1.21886022,109990.0,109980.0,0.00114507]
[1749583790993,1.24546022,109990.0,109980.0,0.00114507]
[1749583791273,1.01884262,109990.0,109980.0,0.01780572]
[1749583791466,0.39650764,109990.0,109980.0,0.01780572]
[1749583791680,0.40559863,109990.0,109980.0,0.0824549]
[1749583791902,0.51513474,109990.0,109980.0,0.01781016]
[1749583792116,0.51513474,109990.0,109980.0,0.00014507]
[1749583792117,1.07271632,109990.0,109980.0,0.00014507]
[1749583792330,1.08180805,109990.0,109980.0,0.01681136]
[1749583792584,1.25455177,109990.0,109980.0,0.00014507]
[1749583792814,1.25455177,109990.0,109980.0,0.01681157]
[1749583793026,1.24546054,109990.0,109980.0,0.01681157]
[1749583793443,1.24546054,109990.0,109980.0,0.01682762]
[1749583794185,1.24546054,109990.0,109980.0,0.00014507]
[1749583794600,1.34246054,109990.0,109980.0,0.00014507]
[1749583795650,1.16971706,109990.0,109980.0,0.00014507]
[1749583795857,1.35155177,109990.0,109980.0,0.00014507]
[1749583796081,0.69697019,109990.0,109980.0,0.00014507]
[1749583796286,1.25455177,109990.0,109980.0,0.00014507]
[1749583796495,1.25455177,109990.0,109980.0,0.01682367]
[1749583796496,1.07271706,109990.0,109980.0,0.01682367]
[1749583796708,1.05108922,109990.0,109980.0,0.01682367]
[1749583796921,1.05108922,109990.0,109980.0,0.02307718]
[1749583797135,1.06018029,109990.0,109980.0,0.02307691]
[1749583797358,0.95408922,109990.0,109980.0,0.02307691]
[1749583797505,0.95408922,109990.0,109980.0,0.08587257]
[1749583797735,0.95408922,109990.0,109980.0,0.07961962]
[1749583797939,0.95408922,109990.0,109980.0,0.03054507]
[1749583798141,0.96318029,109990.0,109980.0,0.036798]
[1749583798351,0.96318029,109990.0,109980.0,0.0534723]
[1749583798548,1.07271624,109990.0,109980.0,0.02307325]
[1749583798789,1.07271616,109990.0,109980.0,0.01682032]
[1749583799012,1.07271607,109990.0,109980.0,0.02307354]
[1749583799163,1.06362484,109990.0,109980.0,0.02307359]
[1749583799365,0.46126104,109990.0,109980.0,0.00014507]
[1749583799564,0.92748922,109990.0,109980.0,0.06124507]
[1749583799769,0.95408922,109990.0,109980.0,0.06124507]
[1749583799987,0.96318029,109990.0,109980.0,0.08417338]
[1749583800182,0.95408922,109990.0,109980.0,0.08417338]
[1749583800355,0.98136422,109990.0,109980.0,0.08417403]
[1749583800593,0.42378264,109990.0,109980.0,0.08417563]
[1749583800821,0.42378264,109990.0,109980.0,0.08418203]
[1749583801038,0.39718264,109990.0,109980.0,0.06750061]
[1749583801283,0.39718264,109990.0,109980.0,0.15824507]
[1749583801505,0.42374264,109990.0,109980.0,0.18117726]
[1749583801727,0.36990764,109990.0,109980.0,0.35390784]
[1749583801948,0.36990764,109990.0,109980.0,0.35390667]
[1749583802173,0.36990764,109990.0,109980.0,0.25690667]
[1749583802399,0.36990764,109990.0,109980.0,0.35390625]
[1749583802626,0.002,109990.0,109980.0,0.42858237]
[1749583802864,0.002,109990.0,109980.0,0.445256]
[1749583803088,0.002,109990.0,109980.0,0.42332905]
[1749583803311,0.002,109990.0,109980.0,0.44000159]
[1749583803528,0.002,109990.0,109980.0,0.44625244]
[1749583803775,0.002,109990.0,109980.0,0.27352186]
[1749583803979,0.002,109990.0,109980.0,0.37353051]
[1749583804215,0.002,109990.0,109980.0,1.21665982]
[1749583804449,0.002,109990.0,109980.0,1.29564072]
[1749583804662,0.002,109990.0,109980.0,1.29563763]
[1749583804882,0.002,109990.0,109980.0,1.28938494]
[1749583805108,0.002,109990.0,109980.0,1.87703701]
[1749583805319,0.002,109990.0,109980.0,1.87603701]
[1749583805542,0.002,109990.0,109980.0,2.31845543]
[1749583805760,0.002,109990.0,109980.0,2.32045543]
[1749583805970,0.002,109990.0,109980.0,2.69905304]
[1749583806183,0.002,109990.0,109980.0,2.23105203]
[1749583806466,0.002,109990.0,109980.0,2.70530502]
[1749583806675,0.002,109990.0,109980.0,2.80530501]
[1749583806886,0.002,109990.0,109980.0,2.03618258]
[1749583807101,0.002,109990.0,109980.0,2.26222161]
[1749583807320,0.002,109990.0,109980.0,2.26522161]
[1749583807528,0.002,109990.0,109980.0,2.36222161]
[1749583807763,0.002,109990.0,109980.0,2.25896328]
[1749583807986,0.342,109990.0,109980.0,1.86631402]
[1749583808190,0.342,109990.0,109980.0,1.84339847]
[1749583808401,0.36941324,109990.0,109980.0,1.84964917]
[1749583808616,0.36941324,109990.0,109980.0,1.86631785]
[1749583809249,0.36941324,109990.0,109980.0,1.86631895]
[1749583809454,0.36941324,109990.0,109980.0,1.86632275]
[1749583809658,0.02941324,109990.0,109980.0,1.86007095]
[1749583809871,0.02941324,109990.0,109980.0,1.86007122]
[1749583810077,0.02941324,109990.0,109980.0,1.86632383]
[1749583810290,0.02941324,109990.0,109980.0,1.86632379]
[1749583811128,0.02941324,109990.0,109980.0,1.86632238]
[1749583811336,0.36941324,109990.0,109980.0,1.86631859]
[1749583811547,0.36941324,109990.0,109980.0,1.86631871]
[1749583811760,0.36941324,109990.0,109980.0,1.86631873]
[1749583811967,0.95426878,109990.0,109980.0,1.57796541]
[1749583812180,0.94517721,109990.0,109980.0,1.22506541]
[1749583812396,0.95426878,109990.0,109980.0,1.32506541]
[1749583812617,0.95426878,109990.0,109980.0,1.02506913]
[1749583812618,1.23536582,109990.0,109980.0,1.02506913]
[1749583812815,1.26264282,109990.0,109980.0,1.00214507]
[1749583813035,1.26264282,109990.0,109980.0,1.00014507]
[1749583814297,1.26264282,109990.0,109980.0,1.00114507]
[1749583814519,1.26264282,109990.0,109980.0,1.00014507]
[1749583814932,1.26364282,109990.0,109980.0,1.00014507]
[1749583815999,1.27818367,109990.0,109980.0,1.00014507]
[1749583816863,1.27818367,109990.0,109980.0,0.25014507]
[1749583817071,1.1240915,109990.0,109980.0,0.25014507]
[1749583817288,1.40288621,109990.0,109980.0,0.25014507]
[1749583817500,1.30592621,109990.0,109980.0,0.25014507]
[1749583817722,1.29683522,109990.0,109980.0,0.25014507]
[1749583818907,1.04662522,109990.0,109980.0,0.25014507]
[1749583819130,0.42425024,109990.0,109980.0,0.33221944]
[1749583819363,0.39769024,109990.0,109980.0,0.33847125]
[1749583819584,0.42425024,109990.0,109980.0,0.3945282]
[1749583819805,0.42425024,109990.0,109980.0,0.50815934]
[1749583820025,0.42425024,109990.0,109980.0,0.79995934]
[1749583820251,0.95455482,109990.0,109980.0,0.79995845]
[1749583820474,0.95455482,109990.0,109980.0,0.78328751]
[1749583820695,0.92799482,109990.0,109980.0,0.79995917]
[1749583820921,0.95455482,109990.0,109980.0,0.79995917]
[1749583821645,0.39697324,109990.0,109980.0,0.78328752]
[1749583821862,0.39697324,109990.0,109980.0,0.77703565]
[1749583822079,0.39697324,109990.0,109980.0,0.79995324]
[1749583822296,0.39697324,109990.0,109980.0,0.78328583]
[1749583822523,0.37041324,109990.0,109980.0,0.79995304]
[1749583822736,0.05697324,109990.0,109980.0,0.77703565]
[1749583822975,0.05697324,109990.0,109980.0,0.89995218]
[1749583823414,0.05697324,109990.0,109980.0,0.79995622]
[1749583823631,0.05697324,109990.0,109980.0,0.88328561]
[1749583823855,0.39697324,109990.0,109980.0,0.89995787]
[1749583824076,0.39697324,109990.0,109980.0,0.70430507]
[1749583824342,0.39697324,109990.0,109980.0,0.82722725]
[1749583824343,0.03041324,109990.0,109980.0,0.82722725]
[1749583824638,0.03041324,109990.0,109980.0,0.80430507]
[1749583824848,0.03041324,109990.0,109980.0,0.53542454]
[1749583825059,0.37041324,109990.0,109980.0,0.53542454]
[1749583825516,0.37041324,109990.0,109980.0,0.51250507]
[1749583825745,0.03041324,109990.0,109980.0,0.53543421]
[1749583825967,0.03041324,109990.0,109980.0,0.51250507]
[1749583826187,0.03041324,109990.0,109980.0,0.51875838]
[1749583826423,0.03041324,109990.0,109980.0,0.53543388]
[1749583826636,0.02941324,109990.0,109980.0,0.51875838]
[1749583826859,0.02941324,109990.0,109980.0,0.76875838]
[1749583827072,0.03041324,109990.0,109980.0,0.76875838]
[1749583827337,0.03041324,109990.0,109980.0,0.76250507]
[1749583828221,0.02941324,109990.0,109980.0,0.76250507]
[1749583828431,0.03041324,109990.0,109980.0,0.76875847]
[1749583828649,0.03041324,109990.0,109980.0,0.76875843]
[1749583829083,0.03041324,109990.0,109980.0,0.76250507]
[1749583829286,0.03041324,109990.0,109980.0,0.76875992]
[1749583829494,0.03041324,109990.0,109980.0,0.78511343]
[1749583829709,0.03041324,109990.0,109980.0,0.78511249]
[1749583829927,0.03041324,109990.0,109980.0,0.87885847]
[1749583830145,0.03041324,109990.0,109980.0,0.88511244]
[1749583830352,0.03041324,109990.0,109980.0,0.87885847]
[1749583830589,0.03041324,109990.0,109980.0,0.88511316]
[1749583831011,0.03041324,109990.0,109980.0,0.88511317]
[1749583831477,0.03041324,109990.0,109980.0,0.87885847]
[1749583831737,0.03041324,109990.0,109980.0,0.8851132]
[1749583831954,0.02941324,109990.0,109980.0,0.8851132]
[1749583832389,0.02941324,109990.0,109980.0,0.88611314]
[1749583832803,0.02941324,109990.0,109980.0,0.87985847]
[1749583833040,0.02941324,109990.0,109980.0,0.88611314]
[1749583833255,0.02941324,109990.0,109980.0,0.88611304]
[1749583833474,0.02941324,109990.0,109980.0,0.88611302]
[1749583833692,0.02941324,109990.0,109980.0,0.88611299]
[1749583833918,0.02941324,109990.0,109980.0,0.88611246]
[1749583834137,0.02941324,109990.0,109980.0,1.08611246]
[1749583834364,0.02941324,109990.0,109980.0,1.08611238]
[1749583834823,0.02941324,109990.0,109980.0,1.37165847]
[1749583835059,0.02941324,109990.0,109980.0,1.37791239]
[1749583835286,0.02941324,109990.0,109980.0,1.37165847]
[1749583836184,0.02941324,109990.0,109980.0,1.37791239]
[1749583836421,0.02941324,109990.0,109980.0,1.37165847]
[1749583837141,0.02941324,109990.0,109980.0,1.37792017]
[1749583837827,0.02941324,109990.0,109980.0,1.37165847]
[1749583838315,0.02941324,109990.0,109980.0,1.37792025]
[1749583838538,0.02941324,109990.0,109980.0,1.37165847]
[1749583839172,0.02941324,109990.0,109980.0,1.37792031]
[1749583839417,0.02941324,109990.0,109980.0,1.3779199]
[1749583839998,0.02941324,109990.0,109980.0,1.37791993]
[1749583840203,0.02941324,109990.0,109980.0,1.37791994]
[1749583840902,0.02941324,109990.0,109980.0,1.37165847]
[1749583841347,0.02941324,109990.0,109980.0,1.3779197]
[1749583841626,0.02941324,109990.0,109980.0,1.37165847]
[1749583841877,0.02941324,109990.0,109980.0,1.37791941]
[1749583842505,0.02941324,109990.0,109980.0,1.37165847]
[1749583842738,0.02941324,109990.0,109980.0,1.37791789]
[1749583842958,0.02941324,109990.0,109980.0,1.37165847]
[1749583843193,0.02941324,109990.0,109980.0,1.37791783]
[1749583843416,0.02941324,109990.0,109980.0,1.37165847]
[1749583843880,0.02941324,109990.0,109980.0,1.37791785]
[1749583844079,0.02941324,109990.0,109980.0,1.37791784]
[1749583844292,0.02941324,109990.0,109980.0,1.37165847]
[1749583845008,0.02941324,109990.0,109980.0,1.08611788]
[1749583845223,0.02941324,109990.0,109980.0,1.07985847]
[1749583845668,0.02941324,109990.0,109980.0,1.08611791]
[1749583845910,0.02941324,109990.0,109980.0,1.07981847]
[1749583846147,0.02941324,109990.0,109980.0,1.08607792]
[1749583846604,0.02941324,109990.0,109980.0,1.08608678]
[1749583846823,0.02941324,109990.0,109980.0,1.07981847]
[1749583847033,0.02941324,109990.0,109980.0,1.08608668]
[1749583847034,0.002,109990.0,109980.0,1.08608668]
[1749583847261,0.002,109990.0,109980.0,1.08608634]
[1749583847474,0.002,109990.0,109980.0,1.69924547]
[1749583847686,0.002,109990.0,109980.0,1.08608616]
[1749583847898,0.002,109990.0,109980.0,1.07981847]
[1749583848333,0.61515916,109990.0,109980.0,1.08608637]
[1749583848538,0.61515916,109990.0,109980.0,1.07981847]
[1749583848749,0.58515916,109990.0,109980.0,1.08608654]
[1749583849001,0.58515916,109990.0,109980.0,1.07981847]
[1749583849238,0.58515916,109990.0,109980.0,1.08608655]
[1749583849464,0.34,110000.0,109990.0,0.3644]
[1749583849687,0.89758756,110000.0,109990.0,0.46132]
[1749583850337,0.36671123,110000.0,109990.0,0.46758952]
[1749583850549,0.36671123,110000.0,109990.0,0.46758951]
[1749583850772,0.36671123,110000.0,109990.0,0.46758952]
[1749583851398,0.36771123,110000.0,109990.0,0.46758952]
[1749583851607,0.36771123,110000.0,109990.0,0.46758953]
[1749583852439,0.92529879,110000.0,109990.0,0.46758945]
[1749583852842,0.92529879,110000.0,109990.0,0.46758943]
[1749583853056,0.36771123,110000.0,109990.0,0.46758943]
[1749583853304,0.341,110000.0,109990.0,0.53167341]
[1749583853522,0.001,110000.0,109990.0,0.69636495]
[1749583853975,0.001,110000.0,109990.0,0.631672]
[1749583854222,0.001,110000.0,109990.0,0.72043248]
[1749583854440,0.001,110000.0,109990.0,0.631672]
[1749583854658,0.001,110000.0,109990.0,0.62540398]
[1749583854877,0.002,110010.0,110000.0,0.3878]
[1749583855096,0.002,110010.0,110000.0,0.55040608]
[1749583855533,0.002,110010.0,110000.0,0.4791534]
[1749583855753,0.002,110010.0,110000.0,0.38542083]
[1749583855970,0.002,110010.0,110000.0,0.4791534]
[1749583856192,0.342,110010.0,110000.0,0.4652]
[1749583856411,0.343,110010.0,110000.0,0.46528]
[1749583856623,0.343,110010.0,110000.0,0.46536]
[1749583856846,0.343,110010.0,110000.0,0.47162971]
[1749583857058,0.343,110010.0,110000.0,0.46536]
[1749583857299,0.90058756,110010.0,110000.0,0.46536]
[1749583857718,0.343,110010.0,110000.0,0.47162856]
[1749583857932,0.343,110010.0,110000.0,0.36906856]
[1749583858153,0.343,110010.0,110000.0,0.47158856]
[1749583858592,0.343,110010.0,110000.0,0.47158778]
[1749583858804,0.343,110010.0,110000.0,0.37159398]
[1749583859017,0.003,110010.0,110000.0,0.66294687]
[1749583859229,0.003,110010.0,110000.0,0.76294536]
[1749583859453,0.003,110010.0,110000.0,0.76294529]
[1749583859711,0.003,110010.0,110000.0,0.7566734]
[1749583860132,0.003,110010.0,110000.0,0.82792608]
[1749583861442,0.003,110010.0,110000.0,0.7566734]
[1749583862345,0.003,110010.0,110000.0,0.82792608]
[1749583862988,0.003,110010.0,110000.0,0.72792608]
[1749583863197,0.003,110010.0,110000.0,0.82792608]
[1749583864326,0.003,110010.0,110000.0,0.72540608]
[1749583864548,0.003,110010.0,110000.0,0.82844608]
[1749583867385,0.002,110010.0,110000.0,0.82844608]
[1749583867619,0.002,110010.0,110000.0,0.83044608]
[1749583869450,0.55958756,110010.0,110000.0,0.91920608]
[1749583869673,0.89958756,110010.0,110000.0,0.6880734]
[1749583869887,0.89958756,110010.0,110000.0,0.7880734]
[1749583870102,0.92722972,110010.0,110000.0,0.7880734]
[1749583870983,0.92722972,110010.0,110000.0,0.4938]
[1749583871207,0.92722972,110010.0,110000.0,0.69664]
[1749583872804,0.92722972,110010.0,110000.0,0.72874]
[1749583873261,0.92722972,110010.0,110000.0,0.43694]
[1749583873490,0.92722972,110010.0,110000.0,0.46904]
[1749583873711,0.002,110010.0,110000.0,0.7853934]
[1749583875028,0.002,110010.0,110000.0,0.85664608]
[1749583875480,0.002,110010.0,110000.0,0.62880608]
[1749583875481,0.55958756,110010.0,110000.0,0.62880608]
[1749583875696,0.55958756,110010.0,110000.0,0.73176608]
[1749583875905,0.55958756,110010.0,110000.0,0.7605134]
[1749583876332,0.55958756,110010.0,110000.0,0.502]
[1749583876569,0.55958756,110010.0,110000.0,0.50496]
[1749583876774,0.55958756,110010.0,110000.0,0.60496]
[1749583876775,0.002,110010.0,110000.0,0.60496]
[1749583876978,0.55958756,110010.0,110000.0,0.302]
[1749583877182,0.89958756,110010.0,110000.0,0.41113406]
[1749583877360,0.342,110010.0,110000.0,0.41113418]
[1749583877573,0.89958756,110010.0,110000.0,0.40488]
[1749583877820,0.89958756,110010.0,110000.0,0.41113421]
[1749583878026,1.45717512,110010.0,110000.0,0.4938]
[1749583878210,0.92567689,110010.0,110000.0,0.69664]
[1749583878439,0.93476639,110010.0,110000.0,0.69664]
[1749583878650,0.94385614,110010.0,110000.0,0.5938]
[1749583879057,0.94385614,110010.0,110000.0,0.60005659]
[1749583879244,0.94385614,110010.0,110000.0,0.6000566]
[1749583879454,0.94385614,110010.0,110000.0,0.5938]
[1749583879718,0.94385614,110010.0,110000.0,0.5918]
[1749583879914,0.94385614,110010.0,110000.0,0.5980566]
[1749583880205,0.95394605,110010.0,110000.0,0.5980566]
[1749583880457,0.95394597,110010.0,110000.0,0.59805411]
[1749583880857,0.95394597,110010.0,110000.0,0.5918]
[1749583881488,0.96303597,110010.0,110000.0,0.5918]
[1749583881686,0.96303588,110010.0,110000.0,0.59805396]
[1749583881917,0.93694597,110010.0,110000.0,0.59805396]
[1749583882065,0.95512505,110010.0,110000.0,0.30625396]
[1749583882504,0.95512505,110010.0,110000.0,0.3]
[1749583882761,0.95512505,110010.0,110000.0,0.30625378]
[1749583882930,0.95512505,110010.0,110000.0,0.30625363]
[1749583883158,0.94603539,110010.0,110000.0,0.3]
[1749583883474,0.94603539,110010.0,110000.0,0.30625565]
[1749583884038,0.94603539,110010.0,110000.0,0.3062533]
[1749583884242,0.37935833,110010.0,110000.0,0.3062533]
[1749583884449,0.94603539,110010.0,110000.0,0.30625336]
[1749583884660,0.370269,110010.0,110000.0,0.3311]
[1749583884869,0.92785656,110010.0,110000.0,0.36985244]
[1749583885291,0.030269,110010.0,110000.0,0.3698514]
[1749583885861,0.370269,110010.0,110000.0,0.3636]
[1749583886069,0.370269,110010.0,110000.0,0.36985045]
[1749583886295,0.92785656,110010.0,110000.0,0.3636]
[1749583886724,0.92785656,110010.0,110000.0,0.36985063]
[1749583887139,0.030269,110010.0,110000.0,0.36985063]
[1749583887346,0.92785656,110010.0,110000.0,0.36985063]
[1749583887850,0.92785656,110010.0,110000.0,0.36985234]
[1749583888070,0.92785656,110010.0,110000.0,0.66165234]
[1749583888518,0.370269,110010.0,110000.0,0.66165235]
[1749583888767,0.92785656,110010.0,110000.0,0.76405235]
[1749583889486,0.92785656,110010.0,110000.0,0.7578]
[1749583889700,0.92785656,110010.0,110000.0,0.76405233]
[1749583889920,0.92785656,110010.0,110000.0,0.7578]
[1749583890137,1.48544412,110010.0,110000.0,0.4918]
[1749583890360,1.48544412,110010.0,110000.0,0.59805242]
[1749583890586,0.93694598,110010.0,110000.0,0.70041242]
[1749583890809,0.93694598,110010.0,110000.0,0.70041439]
[1749583891267,0.93694598,110010.0,110000.0,0.69416]
[1749583891463,0.93694598,110010.0,110000.0,0.70041443]
[1749583891759,0.93694598,110010.0,110000.0,0.70041426]
[1749583891982,0.93694598,110010.0,110000.0,0.70041425]
[1749583892216,1.5036232,110010.0,110000.0,0.70041425]
[1749583892426,1.48544412,110010.0,110000.0,0.70041425]
[1749583892643,1.49453362,110010.0,110000.0,0.70041425]
[1749583892859,1.50362312,110010.0,110000.0,0.70025427]
[1749583893092,1.50362312,110010.0,110000.0,0.70025426]
[1749583893305,1.49453345,110010.0,110000.0,0.70025426]
[1749583893522,1.50362295,110010.0,110000.0,0.70025427]
[1749583893948,1.51271261,110010.0,110000.0,0.5918]
[1749583894168,1.51271261,110010.0,110000.0,0.40833468]
[1749583894399,1.51271261,110010.0,110000.0,0.40833469]
[1749583894831,1.50362295,110010.0,110000.0,0.40833469]
[1749583895070,1.51271261,110010.0,110000.0,0.40833469]
[1749583895281,1.50362295,110010.0,110000.0,0.40833469]
[1749583895495,1.49453345,110010.0,110000.0,0.40833469]
[1749583895773,0.92785656,110010.0,110000.0,0.40833469]
[1749583895971,0.95765656,110010.0,110000.0,0.47283463]
[1749583896219,0.370269,110010.0,110000.0,0.47283463]
[1749583896439,0.92785656,110010.0,110000.0,0.47283427]
[1749583896664,0.92785656,110010.0,110000.0,0.30626165]
[1749583897101,0.92785656,110010.0,110000.0,0.30626178]
[1749583897296,0.370269,110010.0,110000.0,0.30626178]
[1749583897504,0.92785656,110010.0,110000.0,0.30626178]
[1749583897715,0.92785656,110010.0,110000.0,0.3]
[1749583897930,0.92785656,110010.0,110000.0,0.3316]
[1749583898353,0.92785656,110010.0,110000.0,0.33786178]
[1749583898786,0.92785656,110010.0,110000.0,0.33786177]
[1749583898996,0.92785656,110010.0,110000.0,0.33786184]
[1749583899218,0.92785656,110010.0,110000.0,0.43332]
[1749583899432,0.92785656,110010.0,110000.0,0.43958168]
[1749583899648,0.92785656,110010.0,110000.0,0.4395816]
[1749583899859,0.370269,110010.0,110000.0,0.4711816]
[1749583900097,0.92785656,110010.0,110000.0,0.47118489]
[1749583900307,0.92785656,110010.0,110000.0,0.3632]
[1749583900540,0.92785656,110010.0,110000.0,0.46484]
[1749583900983,0.92785656,110010.0,110000.0,0.47110491]
[1749583901174,0.92785656,110010.0,110000.0,0.47110489]
[1749583901833,0.92785656,110010.0,110000.0,0.46484]
[1749583902294,0.92785656,110010.0,110000.0,0.47110492]
[1749583902756,0.92785656,110010.0,110000.0,0.46484]
[1749583903023,0.92785656,110010.0,110000.0,0.47110501]
[1749583903220,1.70360459,110010.0,110000.0,0.0062653]
[1749583903476,0.00909016,110000.0,109990.0,0.4018]
[1749583903691,1.13335561,110000.0,109990.0,0.3018]
[1749583903921,1.2969933,110000.0,109980.0,0.56474507]
[1749583904138,0.91576978,109990.0,109980.0,0.70014507]
[1749583904362,0.92486126,109990.0,109980.0,0.80825474]
[1749583904581,0.91576978,109990.0,109980.0,0.90198507]
[1749583904794,0.91576978,109990.0,109980.0,0.80641642]
[1749583905007,0.93395267,109990.0,109980.0,0.80641642]
[1749583905217,1.12487911,109990.0,109980.0,0.70641642]
[1749583905431,0.93395267,109990.0,109980.0,0.80014507]
[1749583905644,0.36727354,109990.0,109980.0,0.80641651]
[1749583905884,0.91576978,109990.0,109980.0,0.70014507]
[1749583906101,0.92486118,109990.0,109980.0,0.80641652]
[1749583906323,0.92486118,109990.0,109980.0,0.80641622]
[1749583906538,0.91576978,109990.0,109980.0,0.80641611]
[1749583906756,0.92686118,109990.0,109980.0,0.80641611]
[1749583906982,0.95413518,109990.0,109980.0,0.70641611]
[1749583907225,0.95413518,109990.0,109980.0,0.80641611]
[1749583907437,0.95413518,109990.0,109980.0,0.70014507]
[1749583907652,0.95413518,109990.0,109980.0,0.80640717]
[1749583907884,0.96322675,109990.0,109980.0,0.70014507]
[1749583908091,0.95413518,109990.0,109980.0,0.80014507]
[1749583908303,0.96322675,109990.0,109980.0,0.70640717]
[1749583908557,0.96322675,109990.0,109980.0,0.70640736]
[1749583908558,0.96322683,109990.0,109980.0,0.70640736]
[1749583908777,0.95413518,109990.0,109980.0,0.80640736]
[1749583909194,0.95413518,109990.0,109980.0,0.80640737]
[1749583909625,0.95413518,109990.0,109980.0,0.80014507]
[1749583910068,0.95413518,109990.0,109980.0,0.80640737]
[1749583910282,0.95413518,109990.0,109980.0,0.8064056]
[1749583910493,0.39654762,109990.0,109980.0,0.80640181]
[1749583910716,0.95413518,109990.0,109980.0,0.80640182]
[1749583910933,0.95413518,109990.0,109980.0,0.80014507]
[1749583911175,1.14506137,109990.0,109980.0,0.80640182]
[1749583911393,1.14506137,109990.0,109980.0,0.80640186]
[1749583911394,0.97172774,109990.0,109980.0,0.80640186]
[1749583911611,1.07344774,109990.0,109980.0,0.80640186]
[1749583911831,1.06494774,109990.0,109980.0,0.80640211]
[1749583912255,1.06494774,109990.0,109980.0,0.8064021]
[1749583912479,1.06494774,109990.0,109980.0,0.80640211]
[1749583912690,1.05585609,109990.0,109980.0,0.80640211]
[1749583912908,1.2376908,109990.0,109980.0,0.80640209]
[1749583913786,1.06494774,109990.0,109980.0,0.80640209]
[1749583913998,1.06494774,109990.0,109980.0,0.8063986]
[1749583914218,1.06494774,109990.0,109980.0,0.80014507]
[1749583914427,1.06494774,109990.0,109980.0,0.8063986]